Cogmind - Beta 13 *** ADVENTURER MODE // 2024.06.08 @ 14:01:53 Player: e.v.o Result: Self-destructed Performance ------------- Evolutions (1) 500 Regions Visited (2) 400 Robots Destroyed (14) 70 Value Destroyed (369) 369 Prototype IDs (1) 20 Alien Tech Used (0) 0 Bonus (0) 0 TOTAL SCORE: 1359 Bonus ------- None Cogmind --------- Core Integrity 334/400 Matter 288/300 Energy 265/265 System Corruption 1% Temperature Cool (0) Movement Walking (120) Location -9/Materials Parts ------- > --- POWER (1) -------- Improved Ion Engine > --- PROPULSION (3) --- Aluminum Leg Aluminum Leg Aluminum Leg > --- UTILITY (2) ------ Heat Sink Small Storage Unit > --- WEAPON (3) ------- Heavy EM Pulse Gun Improved Assault Rifle Great Maul > --- INVENTORY (8) ---- Ion Engine Ion Engine Improved Ion Engine Improved Hover Unit Improved Hover Unit Long-range Tractor Beam Heavy EM Pulse Gun Peak State ------------ > --- POWER ------------ Improved Ion Engine > --- PROPULSION ------- Improved Hover Unit Improved Hover Unit Improved Hover Unit > --- UTILITY ---------- Small Storage Unit Signal Interpreter > --- WEAPON ----------- Heavy EM Pulse Gun Improved Assault Rifle Great Maul > --- INVENTORY -------- Ion Engine Ion Engine Ion Engine Long-range Tractor Beam Heavy EM Pulse Gun Heavy EM Pulse Gun Ion Cannon Ion Cannon [Rating: 19] Favorites ----------- Power Ion Engine Engine Ion Engine Propulsion Light Treads Treads Light Treads Leg Aluminum Leg Hover Unit Improved Hover Unit Utility Small Storage Unit Device Heat Sink Storage Small Storage Unit Processor Signal Interpreter Weapon EM Pulse Gun Energy Gun EM Pulse Gun Ballistic Gun Assault Rifle Ballistic Cannon Light Cannon Impact Weapon Great Maul Build | -11 -10 -9 ------- Run | Yrd Mat Mat Slots Evolved 2 | . . 2 Power . | . . . Propulsion 1 | . . 1 Utility . | . . . Weapon 1 | . . 1 Parts Attached 26 | 5 3 18 Power 5 | . 2 3 Engine 5 | . 2 3 Core . | . . . Reactor . | . . . Propulsion 11 | 2 . 9 Treads 2 | 2 . . Leg 6 | . . 6 Wheel . | . . . Hover 3 | . . 3 Flight . | . . . Utility 3 | 1 1 1 Device 1 | . . 1 Storage 1 | 1 . . Processor 1 | . 1 . Hackware . | . . . Protection . | . . . Artifact . | . . . Weapon 7 | 2 . 5 Energy Gun 3 | 1 . 2 Energy Cannon . | . . . Ballistic Gun 2 | 1 . 1 Ballistic Cannon 1 | . . 1 Launcher . | . . . Special Weapon . | . . . Impact Weapon 1 | . . 1 Slashing Weapon . | . . . Piercing Weapon . | . . . Special Melee Weapon . | . . . Unidentified Prototypes 1 | . . 1 Parts Lost 2 | . . 2 Power . | . . . Propulsion 1 | . . 1 Utility . | . . . Weapon 1 | . . 1 Highest Loss Streak 2 | . . 2 To Critical Strikes . | . . . Average Slot Usage (%) 97 | . 97 97 Engine 12 | . 13 11 Treads 17 | . 28 2 Leg 8 | . . 20 Hover 3 | . . 8 Device 1 | . . 4 Storage 12 | . 14 11 Processor 10 | . 12 6 Energy Gun 12 | . 14 10 Ballistic Gun 11 | . 14 8 Ballistic Cannon 1 | . . 3 Impact Weapon 4 | . . 10 Naked Turns . | . . . Heaviest Build 23 | 9 14 23 Greatest Support 40 | 40 40 40 Greatest Overweight (x) 2 | . . 2 Average Overweight (x) . | . . . Largest Inventory Capacity 8 | 8 8 8 Average Capacity 7 | 6 8 8 Most Carried 8 | 5 8 8 Average Carried 6 | 3 7 6 Final Capacity 8 | 8 8 8 Final Carried 8 | 5 8 7 Class Distribution -------------------- 84% | Mutant 13% | Scavenger-Mutant Dominant Class ---------------- Mutant | -10/Materials Mutant | -9/Materials Resources | -11 -10 -9 ----------- Run | Yrd Mat Mat Matter Collected 512 | 222 71 219 Remotely . | . . . Salvage Created 470 | . 137 333 Parts 37 | . 15 22 Haulers Intercepted . | . . . Recyclers Shooed . | . . . Parts Field Recycled . | . . . Retrieved Matter . | . . . Parts Self-Destructed . | . . . Prevented . | . . . Kills | -11 -10 -9 ------- Run | Yrd Mat Mat Combat Hostiles Destroyed 10 | . 4 6 Guns 8 | . 3 5 AOE 2 | . 1 1 Classes Destroyed 6 | . 3 3 Worker 1 | . . 1 Builder 1 | . . 1 Watcher 2 | . 2 . Swarmer 3 | . 3 . Grunt 4 | . 1 3 Sentry 3 | . . 3 Best Kill Streak 4 | . 4 4 Combat Bots Only 4 | . 3 4 Max Kills in Single Turn 2 | . 2 2 Gunslinging . | . . . Exploded 1 | . 1 1 Melee . | . . . Uniques/NPCs Destroyed . | . . . Combat | -11 -10 -9 -------- Run | Yrd Mat Mat Hostile Shots Fired 41 | . 14 27 Missed 10 | . 3 7 Damage Taken 345 | . 73 272 Core 90 | . 24 66 Absorbed by Shields . | . . . Ignored by Resistances 101 | . 24 77 Core Remaining (%) 95 | 100 90 . Volleys Fired 27 | . 12 15 Largest 2 | . 2 2 Hottest 68 | . 60 68 Shots Fired 53 | . 24 29 Gun 53 | . 24 29 Cannon . | . . . Launcher . | . . . Special . | . . . Kinetic 27 | . 12 15 Thermal . | . . . Explosive . | . . . Electromagnetic 26 | . 12 14 Robot Hit Streak 11 | . 9 11 Robot Miss Streak 3 | . 3 3 Penetration Max . | . . . Secondary Targets 2 | . 1 1 Max Gunslinging Chain 1 | . 1 1 Shots Hit Robots 38 | . 17 21 Core Hits 20 | . 9 11 Critical Kills . | . . . Critical Parts Destroyed 1 | . . 1 Critical Strikes 1 | . . 1 Smash 1 | . . 1 Melee Attacks 4 | . . 4 Impact 4 | . . 4 Slashing . | . . . Piercing . | . . . Sneak Attacks 1 | . . 1 Combat Hostiles . | . . . Follow-up Attacks . | . . . Damage Inflicted 789 | . 300 489 Guns 505 | . 213 292 Cannons . | . . . Explosions 147 | . 81 66 Melee 131 | . . 131 Ramming 6 | . 6 . Kinetic 246 | . 82 164 Thermal 147 | . 81 66 Explosive . | . . . Electromagnetic 259 | . 131 128 Impact 131 | . . 131 Slashing . | . . . Piercing . | . . . Highest Corruption 1 | . . 1 Average Corruption 1 | . . 1 Corruption Purged . | . . . Corruption Blocked . | . . . Overload Shots . | . . . Overflow Damage 131 | . . 131 Projectiles . | . . . Explosions . | . . . Melee 131 | . . 131 Knockbacks 1 | . . 1 Impact 1 | . . 1 Kinetic . | . . . Secondary . | . . . Self-Inflicted Damage 53 | . . 53 Shots 1 | . . 1 Rammed 2 | . 2 . Targets Rammed 2 | . 2 . Kicked . | . . . Crushed . | . . . Highest Temperature 22 | . 18 22 Average Temperature 10 | . 14 6 Received Heat Transfer 138 | . 18 120 Siege Activations . | . . . Robots Corrupted . | . . . Combat Hostiles . | . . . Parts Fried 2 | . . 2 Impact Corruptions 5 | . . 5 Robots Melted . | . . . Combat Hostiles . | . . . Parts Melted . | . . . Heat Transferred 200 | . 100 100 Parts Sabotaged . | . . . Parts Stolen . | . . . Parts Stripped . | . . . Power Chain Reactions 2 | . 1 1 Alert | -11 -10 -9 ------- Run | Yrd Mat Mat Peak Influence 276 | . 165 276 Initial 8 | . . 8 Average 63 | . 57 84 Maximum Alert Level 1 | . . 1 Low Security (%) 90 | 100 100 76 Level 1 9 | . . 23 Level 2 . | . . . Level 3 . | . . . Level 4 . | . . . Level 5 . | . . . High Security . | . . . Max Security . | . . . Squads Dispatched 2 | . . 2 Investigation . | . . . Extermination . | . . . Reinforcement 2 | . . 2 Assault . | . . . Garrison . | . . . Intercept . | . . . Searches Triggered . | . . . Construction Impeded 1 | . . 1 Haulers Reinforced . | . . . Active Scanning Responses . | . . . Cargo Convoy Interrupts . | . . . Stealth | -11 -10 -9 --------- Run | Yrd Mat Mat Distress Signals 1 | . 1 . Communications Jammed . | . . . Distress Signals . | . . . Times Spotted 20 | . 10 10 Peak Tracking Total 5 | . 5 3 Tactical Retreats . | . . . Traps | -11 -10 -9 ------- Run | Yrd Mat Mat Traps Triggered 1 | . . 1 Indirectly . | . . . Trap Hack Attempts . | . . . Triggered . | . . . Disarmed . | . . . Reprogrammed . | . . . Reused . | . . . Traps Extracted . | . . . Installed . | . . . Triggered . | . . . Machines | -11 -10 -9 ---------- Run | Yrd Mat Mat Machines Disabled 3 | . 1 2 Max in Single Turn 2 | . 1 2 Machines Repaired . | . . . Machines Dismantled . | . . . Machines Sabotaged . | . . . Overloaded Fab Kills . | . . . Hacking | -11 -10 -9 --------- Run | Yrd Mat Mat Machines Accessed 5 | . 3 2 Terminals 5 | . 3 2 Fabricators . | . . . Repair Stations . | . . . Recycling Units . | . . . Scanalyzers . | . . . Garrison Access . | . . . Total Hacks 11 | . 5 6 Successful 8 | . 4 4 Failed 3 | . 1 2 Catastrophic . | . . . Database Lockouts . | . . . Manual 5 | . 3 2 Terminals 11 | . 5 6 Fabricators . | . . . Repair Stations . | . . . Recycling Units . | . . . Scanalyzers . | . . . Garrison Access . | . . . Terminal Hacks 3 | . 1 2 Reinforcement Status 1 | . 1 . Hauler Manifests 1 | . . 1 Zone Layout 1 | . . 1 Fabricator Hacks . | . . . Repair Station Hacks . | . . . Recycling Unit Hacks . | . . . Scanalyzer . | . . . Garrison Access Hacks . | . . . Unauthorized Hacks 5 | . 3 2 Terminals 5 | . 3 2 Track 2 | . 1 1 Botnet 2 | . 1 1 Operators 1 | . 1 . Fabricators . | . . . Repair Stations . | . . . Recycling Units . | . . . Scanalyzers . | . . . Garrison Access . | . . . Data Cores Recovered . | . . . Used . | . . . Hacking Detections 3 | . 1 2 Full Trace Events . | . . . Feedback Events . | . . . Feedback Blocked . | . . . Robot Schematics Acquired . | . . . Robots Built . | . . . Authchips . | . . . Time . | . . . Total Robot Build Rating . | . . . Part Schematics Acquired . | . . . Parts Built . | . . . Authchips . | . . . Time . | . . . Total Part Build Rating . | . . . Parts Repaired . | . . . Time . | . . . Parts Recycled . | . . . Recycled Matter . | . . . Retrieved Matter . | . . . Retrieved Components . | . . . Parts Scanalyzed . | . . . Part Schematics Acquired . | . . . Parts Damaged . | . . . Bothacking | -11 -10 -9 ------------ Run | Yrd Mat Mat Used RIF Installer . | . . . Robots Hacked . | . . . Non-combat . | . . . Combat . | . . . Robot Hacks Applied . | . . . Relay Couplers Released . | . . . Fabnet Peak Effective % . | . . . Robots Rewired . | . . . Allies Hacked . | . . . Hacks Repelled . | . . . Allies | -11 -10 -9 -------- Run | Yrd Mat Mat Total Allies . | . . . Largest Group . | . . . Highest-Rated Group . | . . . Highest-Rated Ally . | . . . Total Orders . | . . . Ally Attacks . | . . . Total Damage . | . . . Kills . | . . . Allies Corrupted . | . . . Allies Melted . | . . . Intel | -11 -10 -9 ------- Run | Yrd Mat Mat Robot Analysis Total . | . . . Derelict Logs Recovered . | . . . Drone Launches . | . . . Drone Recoveries . | . . . Exploration | -11 -10 -9 ------------- Run | Yrd Mat Mat Turns Passed 1078 | 75 577 426 Spaces Moved 634 | 42 285 307 Core 3 | 3 . . Treads 344 | 39 285 20 Legs 192 | . . 192 Wheels . | . . . Hover 95 | . . 95 Flight . | . . . Fastest Speed 50 | 50 160 52 Average Speed 132 | 152 160 103 Slowest Speed 260 | 160 160 260 Overloaded Moves . | . . . Propulsion Burnouts . | . . . Robots Hopped . | . . . Cave-ins Triggered . | . . . Exploration Rate (%) 22 | 3 43 22 Regions Visited 2 Branch Regions . Pre-discovered Areas . | . . . Known Exits Taken 1 | . 1 . Unknown Exits Taken 1 | 1 . . Scrap Searched . | . . . Spaces Dug 3 | . . 3 Terrain Destroyed 30 | . 1 29 Melee 3 | . . 3 Projectile . | . . . AOE 27 | . 1 26 Terrain Rammed . | . . . Walls Destroyed . | . . . Machines Disabled . | . . . Actions | -11 -10 -9 --------- Run | Yrd Mat Mat Total 809 | 51 380 378 Wait 81 | . 74 7 Move 632 | 41 284 307 Hop . | . . . Pick Up 19 | 5 4 10 Fast Attach 15 | 5 2 8 Attach 4 | . . 4 Detach . | . . . Swap 7 | . 1 6 Drop 18 | . 1 17 Fire 27 | . 12 15 Melee 4 | . . 4 Ram . | . . . Kick . | . . . Crush 2 | . 2 . Escape Stasis . | . . . Rewire . | . . . Trap . | . . . Miscellaneous . | . . . Route ------- -11/Scrapyard -10/Materials -9/Materials History --------- Turn | Location | Event 4 | -11/Scrapyard | Discovered new exit (range 15) 76 | -11/Scrapyard | Entered Materials 307 | -10/Materials | Build established: Mutant 438 | -10/Materials | Discovered new exit (range 16) 651 | -10/Materials | Identified exit to Materials 653 | -10/Materials | Entered another Materials area 653 | -9/Materials | Evolved 2 slots: Propulsion x1, Weapon x1 1079 | -9/Materials | Self-destructed Last Messages --------------- 00983_ K-01 Serf collects debris. 01003_ Chain reaction triggered in Ion Engine. 01003_ G-34 Mercenary destroyed. 01003_ Fusion Modulator explodes. 01003_ Hadron Collector disabled. 01003_ K-01 Serf destroyed. 01006_ K-01 Serf collects debris. 01020_ Acquired Imp. Hover Unit. 01021_ K-01 Serf collects debris. 01028_ U-05 Engineer builds a Wall. 01031_ U-05 Engineer builds a Door. 01032_ K-01 Serf collects debris. 01032_ U-05 Engineer builds a Wall. 01036_ U-05 Engineer lays Concrete. 01039_ Acquired Imp. Hover Unit. 01039_ K-01 Serf collects debris. 01040_ U-05 Engineer lays Concrete. 01078_ Triggered Shock Trap. 01078_ The floor emits a surge of raw power. 01078_ System corrupted (+1). Map ----- +----------------------------------------------------+ | | | | | | | | | | | | | ????????????????????###################?????????? | | ????????????????????# # #?????????? | | ????????????????????# /// "T" # """" #?????????? | | ???????????????????## /// #= ###???????? | | ???????????????????# // # " #???????? | | ???????????????????## """ # " ##??????? | | ????????????????????# """ " " ######## | | ????????????????????# """ "! ""## # | | ????????????????????# " " # """" # | | ????????????????????#######+##" " # """" # | | ????????????????????????# #""" ##+#" + """" # | | ?????????????????######?# ! =[ =! # # | | ????????????????##!!!!### *!!*! # # | | ????????????????#! !## #####*%###+###"##### | | ????????????????# #######???#= # ]] #??? | | ??????# ####### ########### # """ ##?? | | ??????# [[# """ #?? | | ?? % + """ ##?? | | ?? ############+######+##### = [ #??? | | ???"" ""???????????# @ # ## ! #??? | | ????????????????????# """ # " ## " " #??? | | ????????????????????# """ # """ ## "R" #??? | | ????????????????????# """ # """ ## """ #??? | | ????????????????????# """ # """ ####+######??? | | ????????????????????# """ # "" #??# #???????? | | ????????????????????# ? # """ #??# ######### | | ????????????????????# ??? k # "" #??# ## # | | ????????????????????# ???? # "" #??# ## """ # | | ??????????????????????????#### " #??# ## "T" # | | ?????????????????????????????# #??# ## # | | ?????????????????????????????###"###### ## # | | ??????????????????????????????# # # | | ??????????????????????????????# + !!== # | | ??????????????????????????????# # !! = # | | ??????????????????????????????# # ! ! # | | ?????????????#########????????# # # | | ?????????????? #######??# [ # # | | ??????????????""""" # #### # # | | ??????????????""""" # # # | | ?????????????"""""" + T ######## | | ?????????????"""""" # #### #??????? | | ?????????????"""""" # #####+##### #??????? | | ???????????? ## ##??# # #??????? | | ????????????########### #???# """# #??????? | +----------------------------------------------------+ Best States ------------- Heat Dissipation 38 Energy Generation 12 Energy Capacity 265 Matter Stores 300 Matter Capacity 300 Sight Range 16 Terrain Scan Density 10 Resistance: KI 20 Resistance: TH 20 Resistance: EX 20 Resistance: EM 20 Resistance: I 20 Resistance: S 20 Resistance: P 20 Evasion (%) 55 Recoil Reduction 2 Offensive Hacking 10 Item Schematics ----------------- None Robot Schematics ------------------ None Fabricated ------------ Nothing Alien Tech Used ----------------- None Achievements -------------- None Challenges ------------ None Game ------ Seed ExoskeletonSlugDevice Manual? 0 Play Time 00:12:03 Cumulative 79.7 hours Start 2024.06.08 @ 13:54:05 End 2024.06.08 @ 14:01:53 Sessions 1 Manual Loads 0 Difficulty Adventurer Special Mode None Game No. 135 Rogue 109 Adventurer 26 Explorer 0 Win Type - Total 0 Types 0/0/0/0/0/0/0/0/0 Lore% 24 Gallery% 43 Achievement% 31 Wizard Run 0 Options --------- Layout 1 ASCII 0 Keyboard 0 Movement Mouse Keybinds 0 Fullscreen 2 Font 24/Smallcaps Map View 50x35 Zoom Use 0% Tactical HUD 1 Map Filters NONE Filters NONE Steam 1 RUN: 93eae51d-c3b5-456d-bd2e-a333fe220c1f